bitfinex/quotes_ETHUSD_20250801
["timestamp","ask_amount","ask_price","bid_price","bid_amount"]
[1754026488856,39.20784,3688.2,3688.1,0.002]
[1754026489849,41.9191897,3688.2,3688.1,0.002]
[1754026491451,11.9191897,3688.2,3688.1,0.002]
[1754026491656,41.9191897,3688.2,3688.1,0.002]
[1754026492551,11.9191897,3688.2,3688.1,0.002]
[1754026492785,41.9191897,3688.2,3688.1,0.002]
[1754026493185,11.9191897,3688.2,3688.1,0.002]
[1754026493358,41.9191897,3688.2,3688.1,0.002]
[1754026493888,39.20784,3688.2,3688.1,0.002]
[1754026494557,41.9191897,3688.2,3688.1,0.002]
[1754026494776,39.20784,3688.2,3688.1,0.002]
[1754026495149,41.9191897,3688.2,3688.1,0.002]
[1754026496372,38.65784,3688.2,3688.1,0.002]
[1754026497370,7.224,3688.2,3688.1,0.002]
[1754026497570,8.1393,3688.2,3688.1,0.002]
[1754026498268,0.1362,3688.3,3688.1,0.002]
[1754026498602,7.224,3688.2,3688.1,0.002]
[1754026498792,4.224,3688.2,3688.1,0.002]
[1754026500230,8.62228,3688.2,3688.1,0.002]
[1754026500520,7.6926,3688.2,3688.1,0.002]
[1754026501014,8.1383,3688.2,3688.1,0.002]
[1754026502372,7.6926,3688.2,3688.1,0.002]
[1754026502573,3.0,3688.2,3688.1,0.002]
[1754026502915,4.3592,3688.2,3688.1,0.002]
[1754026504431,7.3592,3688.2,3688.1,0.002]
[1754026505727,7.8288,3688.2,3688.1,0.002]
[1754026507335,7.3592,3688.2,3688.1,0.002]
[1754026507631,9.01052,3688.2,3688.1,0.002]
[1754026509231,8.2745,3688.2,3688.1,0.002]
[1754026510937,8.52787683,3688.2,3688.1,0.002]
[1754026512111,41.78922653,3688.2,3688.1,0.002]
[1754026512313,42.11248508,3688.2,3688.1,0.002]
[1754026515954,12.11248508,3688.2,3688.1,0.002]
[1754026516248,42.11248508,3688.2,3688.1,0.002]
[1754026516938,42.38438508,3688.2,3688.1,0.002]
[1754026517919,3.26157027,3687.9,3687.8,0.002]
[1754026518116,47.3791471,3687.9,3687.8,0.002]
[1754026518328,48.62790565,3687.9,3687.8,0.002]
[1754026518528,48.3046471,3687.9,3687.8,0.002]
[1754026519875,48.30462387,3687.9,3687.8,0.002]
[1754026520153,45.5930536,3687.9,3687.8,0.002]
[1754026520591,45.1587536,3687.9,3687.8,0.002]
[1754026520751,6.9075536,3687.9,3687.8,0.002]
[1754026521104,14.1175536,3687.9,3687.8,0.002]
[1754026521303,11.1175536,3687.9,3687.8,0.002]
[1754026522201,14.1175536,3687.9,3687.8,0.002]
[1754026522385,16.06962896,3687.9,3687.8,0.002]
[1754026522562,46.06962896,3687.9,3687.8,0.002]
[1754026522767,16.06962896,3687.9,3687.8,0.002]
[1754026523562,46.50392896,3687.9,3687.8,0.002]
[1754026524588,15.57842896,3687.9,3687.8,0.002]
[1754026524789,14.1165536,3687.9,3687.8,0.002]
[1754026525675,14.11653875,3687.9,3687.8,0.002]
[1754026527401,4.206,3687.9,3687.8,0.2151]
[1754026528068,4.206,3687.9,3687.8,0.1]
[1754026528265,0.1352,3688.1,3687.8,0.1]
[1754026528573,4.206,3688.0,3687.9,0.1151]
[1754026528774,7.206,3688.0,3687.9,0.1151]
[1754026529072,7.206,3688.0,3687.9,0.2131]
[1754026530297,7.206,3688.0,3687.9,0.098]
[1754026531077,3.0,3687.9,3687.8,0.002]
[1754026531277,4.206,3688.0,3687.8,0.1]
[1754026531837,4.206,3688.0,3687.8,0.002]
[1754026532121,3.1352,3687.9,3687.8,0.002]
[1754026532337,3.6264,3687.9,3687.8,0.002]
[1754026532481,4.0607,3687.9,3687.8,0.002]
[1754026532810,3.1352,3687.9,3687.8,0.002]
[1754026534375,4.45307,3687.9,3687.8,0.002]
[1754026534577,4.88737,3687.9,3687.8,0.002]
[1754026535478,35.14071328,3687.9,3687.8,0.002]
[1754026536980,38.40228355,3687.9,3687.8,0.002]
[1754026537186,2.71211444,3687.2,3686.5,0.002]
[1754026537383,30.0,3686.7,3686.5,0.002]
[1754026537609,10.30178793,3686.6,3686.5,0.002]
[1754026537816,41.22728793,3686.6,3686.5,0.002]
[1754026538117,41.77728793,3686.6,3686.5,0.002]
[1754026538353,42.10054648,3686.6,3686.5,0.002]
[1754026538509,42.88398145,3686.6,3686.5,0.002]
[1754026538711,42.5607229,3686.6,3686.5,0.002]
[1754026542506,39.29719646,3686.6,3686.5,0.002]
[1754026542721,42.5597229,3686.6,3686.5,0.002]
[1754026543854,12.5597229,3686.6,3686.5,0.002]
[1754026544157,39.84719646,3686.6,3686.5,0.002]
[1754026544509,42.5597229,3686.6,3686.5,0.002]
[1754026544841,12.5597229,3686.6,3686.5,0.002]
[1754026545041,39.84719646,3686.6,3686.5,0.002]
[1754026545367,42.5597229,3686.6,3686.5,0.002]
[1754026545566,42.88298145,3686.6,3686.5,0.002]
[1754026545946,12.88298145,3686.6,3686.5,0.002]
[1754026546119,42.88298145,3686.6,3686.5,0.002]
[1754026547053,39.84719646,3686.6,3686.5,0.002]
[1754026547754,39.84919646,3686.6,3686.5,0.002]
[1754026547952,39.84819646,3686.6,3686.5,0.002]
[1754026549259,34.17269646,3686.6,3686.5,0.002]
[1754026549420,37.58826149,3686.6,3686.5,0.002]
[1754026549644,41.22798793,3686.6,3686.5,0.002]
[1754026549850,38.51546149,3686.6,3686.5,0.002]
[1754026550068,39.06546149,3686.6,3686.5,0.002]
[1754026550989,41.77798793,3686.6,3686.5,0.002]
[1754026551168,42.10124648,3686.6,3686.5,0.002]
[1754026551754,42.37314648,3686.6,3686.5,0.002]
[1754026554663,0.55,3685.9,3685.1,0.022]
[1754026554865,3.0,3685.2,3685.1,0.022]
[1754026555076,38.175683,3685.2,3685.1,0.022]
[1754026555277,39.102883,3685.2,3685.1,0.022]
[1754026558197,42.36643993,3685.2,3685.1,0.022]
[1754026558391,39.652883,3685.2,3685.1,0.022]
[1754026558722,39.78816111,3685.2,3685.1,0.022]
[1754026559234,42.50171804,3685.2,3685.1,0.022]
[1754026559393,43.28427382,3685.2,3685.1,0.022]
[1754026559915,42.96101527,3685.2,3685.1,0.022]
[1754026560277,34.77967263,3685.2,3685.1,0.022]
[1754026560632,3.38698963,3685.2,3685.1,0.022]
[1754026560796,37.71698963,3685.2,3685.1,0.022]
[1754026561182,7.71798963,3685.2,3685.1,0.2371]
[1754026561603,7.71798963,3685.2,3685.1,0.12]
[1754026562216,38.74768963,3685.2,3685.1,0.022]
[1754026562525,38.74768963,3685.2,3684.1,0.022]
[1754026562526,0.55,3684.5,3684.1,0.022]
[1754026562690,30.55,3684.2,3684.1,0.022]
[1754026562894,38.21125855,3684.2,3684.1,0.022]
[1754026563115,38.65875855,3684.2,3684.1,0.022]
[1754026563298,41.85275201,3684.2,3684.1,0.022]
[1754026563819,12.1047986,3684.2,3684.1,0.022]
[1754026564122,42.1047986,3684.2,3684.1,0.022]
[1754026564321,12.1047986,3684.2,3684.1,0.022]
[1754026564636,41.78154005,3684.2,3684.1,0.022]
[1754026565825,41.78354005,3684.2,3684.1,0.022]
[1754026568529,41.78363048,3684.2,3684.1,0.022]
[1754026568716,41.78263048,3684.2,3684.1,0.022]
[1754026569544,48.78263048,3684.2,3684.1,0.022]
[1754026570136,41.86533702,3684.2,3684.1,0.022]
[1754026570339,41.59013702,3684.2,3684.1,0.022]
[1754026570651,11.59213702,3684.2,3684.1,0.2371]
[1754026570946,14.59213702,3684.2,3684.1,0.2371]
[1754026571265,11.59213702,3684.2,3684.1,0.022]
[1754026571477,46.39284418,3684.2,3684.1,0.022]
[1754026571638,47.22855072,3684.2,3684.1,0.022]
[1754026571830,50.26610273,3684.2,3684.1,0.022]
[1754026573682,49.94284418,3684.2,3684.1,0.022]
[1754026574168,43.26610273,3684.2,3684.1,0.022]
[1754026574369,13.26610273,3684.2,3684.1,0.022]
[1754026574872,13.26610273,3684.2,3683.1,0.02]
[1754026574873,33.2650304,3683.2,3683.1,0.02]
[1754026575045,47.96927013,3683.2,3683.1,0.02]
[1754026575250,48.10527013,3683.2,3683.1,0.02]
[1754026575451,48.58497013,3683.2,3683.1,0.02]
[1754026575766,49.03247013,3683.2,3683.1,0.02]
[1754026576475,46.31743973,3683.2,3683.1,0.02]
[1754026576651,45.86993973,3683.2,3683.1,0.02]
[1754026576837,44.66913702,3683.2,3683.1,0.02]
[1754026577038,44.66813702,3683.2,3683.1,0.02]
[1754026578338,48.31666742,3683.2,3683.1,0.02]
[1754026578539,45.60163702,3683.2,3683.1,0.02]
[1754026578957,50.31466742,3683.2,3683.1,0.02]
[1754026579277,49.85886742,3683.2,3683.1,0.02]
[1754026579847,46.66513702,3683.2,3683.1,0.02]
[1754026580045,50.31366742,3683.2,3683.1,0.02]
[1754026581053,46.11166742,3683.2,3683.1,0.02]
[1754026581375,50.51591014,3683.2,3683.1,0.02]
[1754026581561,42.66237974,3683.2,3683.1,0.02]
[1754026581889,46.86737974,3683.2,3683.1,0.02]
[1754026582252,50.51591014,3683.2,3683.1,0.02]
[1754026582576,42.52637974,3683.2,3683.1,0.02]
[1754026582893,46.86731753,3683.2,3683.1,0.02]
[1754026583191,42.66231753,3683.2,3683.1,0.02]
[1754026583352,46.86731753,3683.2,3683.1,0.02]
[1754026584175,46.86731753,3683.2,3683.1,0.022]
[1754026584680,47.34501753,3683.2,3683.1,0.022]
[1754026585051,50.06004793,3683.2,3683.1,0.022]
[1754026585254,47.34501753,3683.2,3683.1,0.022]
[1754026585452,50.51584793,3683.2,3683.1,0.022]
[1754026585653,47.80081753,3683.2,3683.1,0.022]
[1754026585852,47.60190425,3683.2,3683.1,0.022]
[1754026586596,47.14610425,3683.2,3683.1,0.022]
[1754026586794,17.14610425,3683.2,3683.1,0.022]
[1754026587085,50.31693465,3683.2,3683.1,0.022]
[1754026587299,47.60190425,3683.2,3683.1,0.022]
[1754026588907,17.60190425,3683.2,3683.1,0.022]
[1754026589080,47.60190425,3683.2,3683.1,0.022]
[1754026589772,47.80144331,3683.2,3683.1,0.022]
[1754026590287,12.46340425,3683.2,3683.1,0.12]
[1754026590487,15.97640425,3683.2,3683.1,0.12]
[1754026590811,15.97640425,3683.2,3683.1,0.022]
[1754026590812,46.66240425,3683.2,3683.1,0.022]
[1754026590973,47.14010425,3683.2,3683.1,0.022]
[1754026591170,55.57492909,3683.2,3683.1,0.022]
[1754026592312,47.14010425,3683.2,3683.1,0.022]
[1754026592809,55.57492909,3683.2,3683.1,0.022]
[1754026592970,58.28995949,3683.2,3683.1,0.022]
[1754026593709,58.56185949,3683.2,3683.1,0.022]
[1754026594302,6.26576774,3682.2,3682.1,0.02]
[1754026594487,48.6962159,3682.2,3682.1,0.02]
[1754026594713,49.7657159,3682.2,3682.1,0.02]
[1754026594898,41.78669106,3682.2,3682.1,0.02]
[1754026595921,42.05859106,3682.2,3682.1,0.02]
[1754026596127,12.05859106,3682.2,3682.1,0.02]
[1754026596337,42.05859106,3682.2,3682.1,0.02]
[1754026596632,41.78669106,3682.2,3682.1,0.02]
[1754026596836,48.78669106,3682.2,3682.1,0.02]
[1754026597040,44.58869106,3682.2,3682.1,0.02]
[1754026597335,44.58842332,3682.2,3682.1,0.02]
[1754026598204,10.38942332,3682.2,3682.1,0.02]
[1754026598443,44.58942332,3682.2,3682.1,0.02]
[1754026598643,46.07292332,3682.2,3682.1,0.02]
[1754026598827,5.9877415,3682.1,3680.4,0.098]
[1754026599148,30.686,3681.2,3680.3,0.1171]
[1754026599303,44.67104134,3681.2,3680.2,0.098]
[1754026599501,45.60454134,3681.2,3680.2,0.098]
[1754026600263,45.60454134,3681.2,3679.6,0.136]
[1754026600264,57.45792062,3681.2,3679.6,0.136]
[1754026600418,3.55,3679.8,3678.7,7.38530717]
[1754026600607,0.136,3679.2,3679.0,0.098]
[1754026600809,7.355,3679.2,3679.1,0.1371]
[1754026601012,3.136,3679.2,3679.1,0.1371]
[1754026601423,3.136,3679.2,3679.1,0.2351]
[1754026602318,7.219,3679.2,3679.1,0.2351]
[1754026602517,3.0,3679.2,3679.1,0.2351]
[1754026602716,7.219,3679.2,3679.1,0.2351]
[1754026602914,7.219,3679.2,3679.1,0.02]
[1754026603253,38.6075,3679.2,3679.1,0.02]
[1754026603419,3.13455944,3679.2,3679.1,0.02]
[1754026603920,7.36655944,3679.2,3679.1,0.02]
[1754026604251,7.91755944,3679.2,3679.1,0.02]
[1754026604437,3.13455944,3679.2,3679.1,0.02]
[1754026604814,7.36855944,3679.2,3679.1,0.02]
[1754026605751,7.62039932,3679.2,3679.1,0.02]
[1754026605979,7.61839932,3679.2,3679.1,0.02]
[1754026606275,7.61839932,3679.2,3679.1,0.022]
[1754026606943,7.36655944,3679.2,3679.1,0.022]
[1754026607675,7.36755944,3679.2,3679.1,0.022]
[1754026608173,7.61902664,3679.2,3679.1,0.022]
[1754026608331,7.36755944,3679.2,3679.1,0.022]
[1754026608738,7.36555944,3679.2,3679.1,0.022]
[1754026609482,3.13455944,3679.2,3679.1,0.022]
[1754026609641,3.13455944,3679.2,3679.1,0.2371]
[1754026609642,0.136,3679.2,3679.1,0.2371]
[1754026609833,4.368,3679.2,3679.1,0.2371]
[1754026611088,0.136,3679.2,3679.1,0.022]
[1754026611292,4.367,3679.2,3679.1,0.022]
[1754026613338,0.136,3679.2,3679.1,0.12]
[1754026613564,3.0,3679.3,3679.1,0.2371]
[1754026613745,7.227,3679.2,3679.1,0.2371]
[1754026613939,7.227,3679.2,3679.1,0.022]
[1754026614169,7.227,3679.2,3679.1,0.158]
[1754026614376,6.533,3680.8,3679.1,0.3731]
[1754026614577,6.533,3680.8,3679.2,0.2151]
[1754026614578,0.136,3680.1,3679.2,0.2151]
[1754026614752,3.0,3679.9,3679.6,0.136]
[1754026614958,3.0,3679.7,3679.6,0.2531]
[1754026615278,4.228,3679.7,3679.6,0.2531]
[1754026615573,0.136,3680.2,3679.6,0.2531]
[1754026615574,0.136,3680.2,3679.6,0.3511]
[1754026615773,4.227,3680.1,3679.7,0.2151]
[1754026615978,4.227,3680.0,3679.8,0.136]
[1754026616162,0.136,3680.3,3679.9,0.2151]
[1754026616365,3.0,3680.1,3679.1,0.022]
[1754026616548,0.4499,3680.4,3679.1,0.12]
[1754026616874,3.0,3680.7,3679.2,0.1171]
[1754026616875,3.0,3680.2,3679.2,0.1171]
[1754026617068,3.0,3680.0,3679.3,0.098]
[1754026617239,3.0,3680.7,3679.4,0.1171]
[1754026617441,3.0,3680.5,3679.5,0.098]
[1754026617983,3.0,3680.3,3679.6,0.1171]
[1754026618278,3.0,3680.1,3679.7,0.098]
[1754026618776,4.228,3680.0,3679.8,0.2151]
[1754026619077,4.227,3679.9,3679.1,0.572]
[1754026619379,4.227,3679.9,3679.2,0.44611169]
[1754026619759,3.0,3680.7,3679.3,0.2151]
[1754026620075,3.0,3680.5,3679.3,0.2151]
[1754026620276,3.0,3680.5,3679.4,0.098]
[1754026620479,3.0,3680.5,3679.5,2.71776056]
[1754026620780,0.4973,3681.9,3679.9,0.55]
[1754026620944,4.228,3681.8,3680.0,0.24227391]
[1754026621147,4.228,3681.8,3680.5,2.71695199]
[1754026621349,4.228,3681.8,3680.7,0.55]
[1754026621550,0.02,3681.9,3680.8,0.242268]
[1754026621854,0.02,3681.9,3681.3,3.26641335]
[1754026622059,0.02,3681.9,3681.4,0.24226357]
[1754026622261,0.02,3681.9,3681.4,0.2151]
[1754026622454,0.02,3681.9,3681.5,0.2151]
[1754026622843,0.02,3681.9,3681.5,0.1171]
[1754026623047,0.02,3681.9,3681.6,0.098]
[1754026623247,0.02,3681.9,3681.5,0.95923755]
[1754026623481,0.02,3681.9,3681.0,0.55]
[1754026624599,0.9272,3681.8,3680.8,0.97175435]
[1754026624766,3.0,3681.6,3680.5,0.098]
[1754026626449,3.136,3681.6,3681.1,0.136]
[1754026626692,0.4773,3681.5,3681.1,0.136]
[1754026627349,3.136,3681.6,3681.1,0.136]
[1754026627558,0.02,3681.9,3680.7,0.1171]
[1754026627749,0.02,3681.9,3681.5,0.136]
[1754026627970,4.228,3681.8,3681.7,0.136]
[1754026628159,7.7053,3681.8,3681.7,0.136]
[1754026628363,3.9272,3681.8,3681.5,0.136]
[1754026628574,0.4773,3681.7,3681.5,0.136]
[1754026628776,4.7073,3681.7,3681.5,0.136]
[1754026629180,0.9272,3681.6,3681.5,0.136]
[1754026629689,0.9282,3681.6,3681.5,0.136]
[1754026630093,0.9282,3681.6,3681.2,0.136]
[1754026630390,0.9272,3681.5,3681.2,0.136]
[1754026630989,0.9272,3681.4,3681.1,0.136]
[1754026631192,0.137,3681.6,3680.6,0.2151]
[1754026631363,4.228,3681.3,3681.1,0.136]
[1754026631790,0.001,3681.6,3681.1,0.136]
[1754026632004,0.001,3681.6,3680.6,0.2151]
[1754026632171,0.001,3681.6,3681.5,0.136]
[1754026632956,0.9282,3681.6,3681.5,0.136]
[1754026633160,1.88182,3681.6,3681.1,0.136]
[1754026633469,0.9272,3681.5,3681.1,0.136]
[1754026633881,0.9272,3681.4,3681.1,0.136]
[1754026634085,4.228,3681.3,3681.1,0.136]
[1754026634273,3.0,3681.2,3681.1,0.136]
[1754026634589,3.9272,3681.2,3680.2,0.55]
[1754026634898,3.9272,3681.2,3680.9,0.136]
[1754026635059,3.0,3681.0,3680.9,0.136]
[1754026635459,0.136,3681.4,3680.9,0.136]
[1754026635669,4.227,3681.3,3680.9,0.136]
[1754026635866,3.001,3681.6,3681.0,0.2151]
[1754026636100,3.001,3681.6,3681.5,0.136]
[1754026636460,0.001,3681.6,3681.5,0.136]
[1754026636884,0.001,3681.6,3681.5,0.3511]
[1754026637089,0.001,3681.6,3681.5,3.37414309]
[1754026637290,0.001,3681.6,3681.5,3.95130593]
[1754026637473,0.001,3681.6,3681.5,3.92414309]
[1754026640171,0.001,3681.6,3681.5,3.95130593]
[1754026640679,0.001,3681.6,3681.5,3.92414309]
[1754026642083,0.001,3681.6,3681.5,3.80704309]
[1754026642296,0.9159,3682.6,3681.7,2.71612487]
[1754026642468,0.9159,3682.6,3681.8,1.2023168]
[1754026642798,0.9159,3682.6,3682.5,0.136]
[1754026645190,0.9159,3682.6,3681.5,0.30675897]
[1754026645380,1.0519,3682.5,3682.0,0.136]
[1754026645898,0.136,3682.5,3682.0,0.136]
[1754026646112,0.9159,3682.4,3682.0,0.136]
[1754026646314,0.136,3682.5,3682.0,0.136]
[1754026646627,1.0519,3682.3,3681.8,0.136]
[1754026646824,0.9159,3682.2,3681.8,0.136]
[1754026646972,4.223,3682.1,3681.8,0.136]
[1754026647172,3.9159,3682.0,3681.8,0.136]
[1754026647593,0.9159,3681.9,3681.8,0.136]
[1754026647793,0.9159,3681.9,3681.4,0.136]
[1754026647984,3.136,3682.0,3681.4,0.136]
[1754026648210,4.222,3681.9,3681.7,0.136]
[1754026648409,4.6527,3681.9,3681.7,0.136]
[1754026648703,0.4852,3681.8,3681.7,0.136]
[1754026648898,4.222,3681.9,3681.7,0.136]
[1754026649280,0.9159,3681.8,3681.7,0.136]
[1754026649809,0.4852,3682.1,3681.7,0.136]
[1754026650118,4.7072,3682.0,3681.7,0.136]
[1754026650287,0.4852,3682.6,3682.0,0.136]
[1754026650486,4.222,3682.5,3681.9,0.136]
[1754026650679,4.222,3682.5,3682.4,0.136]
[1754026650879,5.1379,3682.5,3682.4,0.136]
[1754026651415,0.156,3682.9,3682.4,0.136]
[1754026651416,0.02,3682.9,3682.4,0.136]
[1754026651619,4.222,3682.8,3682.5,0.02715546]
[1754026651917,4.222,3682.8,3682.3,2.71566991]
[1754026652106,0.001,3682.4,3682.2,2.71574874]
[1754026652306,0.001,3682.4,3681.1,2.71650885]
[1754026652307,0.9159,3682.3,3682.1,0.136]
[1754026652505,0.9159,3682.2,3682.1,0.136]
[1754026652884,3.9159,3682.2,3680.7,2.71682408]
[1754026653087,0.9159,3682.1,3680.7,2.71682408]
[1754026653402,0.9159,3682.0,3680.8,0.85318275]
[1754026653602,3.0,3682.2,3680.8,0.85318275]
[1754026653825,0.136,3682.1,3681.5,0.136]
[1754026654022,3.0,3682.2,3680.3,3.06536697]
[1754026654228,3.0,3682.2,3681.2,0.136]
[1754026654229,0.136,3681.8,3681.2,0.136]
[1754026654428,5.1549,3681.7,3681.2,0.136]
[1754026654624,0.9159,3681.6,3681.2,0.136]
[1754026654799,4.239,3681.7,3681.2,0.136]
[1754026655006,0.9159,3681.5,3681.2,0.136]
[1754026655524,4.239,3681.7,3681.2,0.136]
[1754026655525,0.9159,3681.4,3681.2,0.136]
[1754026655711,0.9159,3681.4,3680.3,0.34824901]
[1754026655918,0.9159,3681.3,3681.1,0.136]
[1754026656096,0.9159,3681.3,3680.9,0.136]
[1754026656423,0.9159,3681.2,3680.9,0.136]
[1754026656623,5.1529,3681.1,3680.9,0.136]
[1754026656804,4.237,3681.1,3680.9,0.136]
[1754026657007,4.237,3681.4,3680.9,0.136]
[1754026657326,0.9159,3681.3,3680.9,0.136]
[1754026657525,0.9159,3681.3,3681.1,0.136]
[1754026657710,0.9159,3681.2,3680.6,0.136]
[1754026658026,0.136,3681.1,3680.6,0.136]
[1754026658527,0.9159,3681.0,3680.6,0.136]
[1754026658726,4.237,3680.9,3680.6,0.136]
[1754026659222,0.9159,3680.8,3680.6,0.136]
[1754026659627,0.9159,3680.7,3680.6,0.136]
[1754026661602,0.9159,3680.7,3680.1,0.02]
[1754026661890,0.4852,3680.6,3680.5,0.136]
[1754026662089,0.9159,3680.6,3680.5,0.136]
[1754026663297,0.9159,3680.6,3680.4,0.136]
[1754026663492,0.9159,3680.5,3680.4,0.136]
[1754026663692,0.9159,3680.5,3680.3,0.136]
[1754026663896,5.1469,3680.4,3680.1,0.02]
[1754026664200,3.0,3681.0,3680.1,0.02]
[1754026664201,5.1469,3680.3,3680.1,0.02]
[1754026664391,4.231,3680.2,3680.1,0.02]
[1754026664610,5.1469,3680.2,3680.1,0.02]
[1754026665926,5.2829,3680.2,3680.1,0.02]
[1754026666928,1.0519,3680.2,3680.1,0.02]
[1754026667130,4.7152,3680.2,3680.1,0.02]
[1754026667499,0.5702,3680.4,3680.1,0.02]
[1754026667699,7.08,3681.7,3680.1,0.02]
[1754026667700,4.229,3680.3,3680.1,0.02]
[1754026667931,0.6228,3680.5,3680.1,0.02]
[1754026668114,4.229,3680.2,3680.1,0.02]
[1754026668526,4.229,3680.2,3680.1,0.156]
[1754026669101,5.15,3680.2,3680.1,0.02]
[1754026669433,8.286,3680.2,3680.1,0.02]
[1754026672604,8.286,3680.2,3680.1,0.022]
[1754026677845,9.1146,3680.2,3680.1,0.022]
[1754026679021,9.1066,3680.2,3680.1,0.022]
[1754026681846,9.1036,3680.2,3680.1,0.022]
[1754026682012,8.275,3680.2,3680.1,0.022]
[1754026684016,8.52705395,3680.2,3680.1,0.022]
[1754026684938,8.52505395,3680.2,3680.1,0.022]
[1754026685235,4.30905395,3680.2,3680.1,0.022]
[1754026685437,8.52505395,3680.2,3680.1,0.022]
[1754026685957,9.39088137,3680.2,3680.1,0.022]
[1754026686661,5.72488137,3680.2,3680.1,0.022]
[1754026686821,9.94088137,3680.2,3680.1,0.022]
[1754026687018,12.91041085,3680.2,3680.1,0.022]
[1754026687218,43.30814719,3680.2,3680.1,0.022]
[1754026688251,40.79649938,3680.2,3680.1,0.022]
[1754026688454,39.89442323,3680.2,3680.1,0.022]
[1754026688660,43.11632863,3680.2,3680.1,0.022]
[1754026688874,40.39908501,3680.2,3680.1,0.022]
[1754026689259,36.18308501,3680.2,3680.1,0.022]
[1754026689565,4.76725759,3680.2,3680.1,0.022]
[1754026689795,8.98625759,3680.2,3680.1,0.022]
[1754026689920,8.78066178,3680.2,3680.1,0.022]
[1754026691430,8.276,3680.2,3680.1,0.022]
[1754026691756,8.7808859,3680.2,3680.1,0.022]
[1754026691948,8.78088712,3680.2,3680.1,0.022]
[1754026692456,9.69263281,3680.2,3680.1,0.022]
[1754026693048,39.69263281,3680.2,3680.1,0.022]
[1754026693862,43.35761277,3680.2,3680.1,0.022]
[1754026694031,40.64036915,3680.2,3680.1,0.022]
[1754026694537,40.64036345,3680.2,3680.1,0.022]
[1754026694944,36.02362711,3680.2,3680.1,0.022]
[1754026695146,35.47362711,3680.2,3680.1,0.022]
[1754026695348,9.68862711,3680.2,3680.1,0.022]
[1754026696082,5.47362711,3680.2,3680.1,0.022]
[1754026696278,8.34168142,3680.2,3680.1,0.022]
[1754026696475,8.78588142,3680.2,3680.1,0.022]
[1754026697471,7.85397466,3680.2,3680.1,0.022]
[1754026697773,8.77207466,3680.2,3680.1,0.022]
[1754026697970,4.11487466,3680.2,3680.1,0.022]
[1754026698160,7.85397466,3680.2,3680.1,0.022]
[1754026698365,10.22409415,3680.2,3680.1,0.022]
[1754026698944,40.63809415,3680.2,3680.1,0.022]
[1754026699151,41.44328953,3680.2,3680.1,0.022]
[1754026699770,36.82283049,3680.2,3680.1,0.022]
[1754026699991,40.63709415,3680.2,3680.1,0.022]
[1754026701604,40.08909415,3680.2,3680.1,0.022]
[1754026701904,3.50497466,3680.2,3680.1,0.022]
[1754026702195,7.71797466,3680.2,3680.1,0.022]
[1754026702777,3.50497466,3680.2,3680.1,0.022]
[1754026703073,0.25253395,3680.2,3680.1,0.022]
[1754026703279,4.71719877,3680.2,3680.1,0.022]
[1754026703504,7.71719877,3680.2,3680.1,0.022]
[1754026703815,8.63529877,3680.2,3680.1,0.022]
[1754026703983,10.20559562,3680.2,3680.1,0.022]
[1754026704185,10.60333196,3680.2,3680.1,0.022]
[1754026704722,3.90293511,3680.2,3680.1,0.022]
[1754026705016,7.71919877,3680.2,3680.1,0.12]
[1754026705165,0.25253395,3680.2,3680.1,0.2371]
[1754026705366,4.46753395,3680.2,3680.1,0.2371]
[1754026705616,4.46753395,3680.2,3680.1,0.022]
[1754026706284,0.25253395,3680.2,3680.1,0.022]
[1754026706613,4.214,3680.2,3680.1,0.12]
[1754026706768,4.214,3680.2,3680.1,0.2371]
[1754026706967,3.0,3680.3,3680.1,0.12]
[1754026707413,0.13712915,3681.4,3680.2,0.02717243]
[1754026707749,3.0,3681.2,3680.3,0.2151]
[1754026707910,3.0,3681.0,3680.3,0.1171]
[1754026708114,3.0,3680.8,3680.4,0.098]
[1754026708438,4.216,3680.7,3680.4,0.098]
[1754026708654,4.216,3680.7,3680.1,0.022]
[1754026708947,4.216,3680.7,3680.5,0.2151]
[1754026709156,7.216,3680.7,3680.6,0.136]
[1754026710549,7.216,3680.7,3680.6,0.3511]
[1754026711258,4.216,3680.7,3680.6,0.3511]
[1754026711418,7.14531732,3681.7,3680.6,0.3511]
[1754026711419,6.533,3681.7,3680.6,0.3511]
[1754026711604,7.60038934,3681.6,3680.7,0.2151]
[1754026711811,3.0,3681.5,3681.0,0.136]
[1754026712157,3.0,3681.3,3681.0,0.234]
[1754026712468,3.0,3681.1,3681.0,0.2531]
[1754026712608,0.136,3681.6,3681.0,0.2531]
[1754026712808,4.211,3681.5,3681.1,0.1171]
[1754026713017,4.211,3681.5,3681.2,0.098]
[1754026713242,7.211,3681.5,3681.4,0.136]
[1754026713637,7.211,3681.5,3681.4,0.3511]
[1754026713839,7.211,3681.5,3681.4,0.234]
[1754026714040,7.211,3681.5,3681.4,0.136]